bitfinex/quotes_BTCUSD_20250316
["timestamp","ask_amount","ask_price","bid_price","bid_amount"]
[1742167110728,0.0001692,82514.0,82513.0,0.01071434]
[1742167110932,0.0122882,82514.0,82513.0,4e-07]
[1742167111568,0.0122882,82514.0,82513.0,0.0040004]
[1742167112177,0.03499677,82514.0,82513.0,0.0040004]
[1742167112810,0.03499677,82514.0,82513.0,4e-07]
[1742167112981,0.03499677,82514.0,82513.0,0.0030004]
[1742167113183,0.03499677,82514.0,82513.0,0.01159044]
[1742167113659,0.05399414,82514.0,82513.0,0.01159044]
[1742167115989,0.04187514,82514.0,82513.0,0.29311744]
[1742167116361,0.02287777,82514.0,82513.0,0.29311744]
[1742167116568,0.02287777,82514.0,82513.0,0.33991744]
[1742167118912,0.02287777,82514.0,82513.0,0.13389044]
[1742167119970,0.02287777,82514.0,82513.0,0.32779844]
[1742167120376,0.02287777,82514.0,82513.0,0.33991744]
[1742167122294,0.02287777,82514.0,82513.0,1.83991744]
[1742167122676,0.02287777,82514.0,82513.0,1.83691744]
[1742167122936,0.02287777,82514.0,82513.0,1.84091744]
[1742167123273,0.02287777,82514.0,82513.0,1.85325523]
[1742167123977,0.02816437,82550.0,82535.0,0.328273]
[1742167124204,0.01899273,82542.0,82535.0,0.466913]
[1742167124423,0.01899273,82542.0,82535.0,0.465913]
[1742167124604,0.01899273,82542.0,82535.0,0.464913]
[1742167125210,0.01899273,82542.0,82535.0,0.465913]
[1742167125415,0.01899273,82542.0,82535.0,0.5730866]
[1742167125739,0.01899273,82542.0,82535.0,2.0730866]
[1742167126562,0.03110773,82542.0,82535.0,2.0740866]
[1742167126994,0.19385,82538.0,82535.0,1.7314736]
[1742167127208,0.012115,82540.0,82535.0,1.8702336]
[1742167127383,0.012115,82540.0,82535.0,1.8803496]
[1742167127713,0.193843,82541.0,82535.0,1.8803496]
[1742167127770,0.193843,82541.0,82535.0,0.3873496]
[1742167127965,0.01899273,82542.0,82535.0,0.5812066]
[1742167128387,0.3,82548.0,82535.0,0.5812066]
[1742167128569,0.03637594,82536.0,82535.0,0.5812066]
[1742167129703,0.0001691,82536.0,82535.0,0.5812066]
[1742167132324,0.0001691,82536.0,82535.0,2.0772066]
[1742167132660,0.0001691,82536.0,82535.0,2.0832066]
[1742167133214,1e-07,82536.0,82535.0,2.09774745]
[1742167133385,0.0043286,82550.0,82549.0,0.012114]
[1742167133603,0.00474078,82550.0,82549.0,0.473938]
[1742167133803,0.00474078,82550.0,82549.0,0.53337641]
[1742167134057,0.00474078,82550.0,82549.0,0.53237641]
[1742167134252,7.8e-07,82550.0,82549.0,2.03237641]
[1742167134478,7.8e-07,82550.0,82549.0,2.45861726]
[1742167134653,7.8e-07,82550.0,82549.0,2.46761726]
[1742167134989,0.0001689,82564.0,82563.0,0.335102]
[1742167135191,0.00029253,82564.0,82563.0,0.5485944]
[1742167135383,0.00029253,82564.0,82563.0,0.56077663]
[1742167136475,5.3e-07,82564.0,82563.0,0.56077663]
[1742167136851,5.3e-07,82564.0,82563.0,0.56677663]
[1742167137242,5.3e-07,82564.0,82563.0,0.57277663]
[1742167138383,5.3e-07,82564.0,82563.0,0.58181943]
[1742167140114,0.00016963,82564.0,82563.0,0.58181943]
[1742167140728,0.00016963,82564.0,82563.0,0.58161943]
[1742167141088,0.00016963,82564.0,82563.0,0.44301943]
[1742167141294,0.00016963,82564.0,82563.0,0.5603944]
[1742167142118,0.02270214,82564.0,82563.0,0.5543944]
[1742167142518,0.02270214,82564.0,82563.0,0.5603944]
[1742167143027,0.02270214,82564.0,82563.0,0.5543944]
[1742167143483,0.05876299,82564.0,82563.0,0.5603944]
[1742167145164,0.05876299,82564.0,82563.0,0.5119944]
[1742167145373,0.05876299,82564.0,82563.0,0.0988034]
[1742167145700,0.07774589,82564.0,82563.0,0.0988034]
[1742167146021,0.07774589,82564.0,82563.0,0.2925944]
[1742167147778,0.07774589,82564.0,82563.0,0.4137944]
[1742167147779,0.05876299,82564.0,82563.0,0.4137944]
[1742167147993,9.9e-07,82564.0,82563.0,0.4137944]
[1742167148618,0.0002489,82573.0,82572.0,0.20588]
[1742167148829,0.0002489,82573.0,82572.0,0.2482678]
[1742167149903,0.0002489,82573.0,82572.0,0.2512678]
[1742167150457,0.0002489,82573.0,82572.0,0.2542678]
[1742167152122,0.0001691,82590.0,82572.0,0.2542678]
[1742167152123,6.3e-07,82608.0,82607.0,0.205793]
[1742167152330,6.3e-07,82608.0,82607.0,0.45094773]
[1742167152534,7.55e-05,82608.0,82600.0,0.193703]
[1742167152683,0.193695,82604.0,82598.0,1.5]
[1742167152888,0.01369368,82608.0,82598.0,1.5]
[1742167153154,0.205793,82607.0,82600.0,0.205808]
[1742167153336,7.55e-05,82608.0,82607.0,0.193688]
[1742167153536,7.55e-05,82608.0,82607.0,0.004]
[1742167153740,7.55e-05,82608.0,82607.0,0.012105]
[1742167153914,0.012105,82606.0,82594.0,0.012107]
[1742167154299,0.193717,82595.0,82586.0,0.205844]
[1742167154506,0.012107,82596.0,82588.0,0.012108]
[1742167154637,0.205825,82595.0,82589.0,0.012108]
[1742167154862,0.205825,82595.0,82587.0,0.0562521]
[1742167154863,0.012107,82593.0,82587.0,0.0562521]
[1742167155180,0.3,82593.0,82590.0,0.012108]
[1742167155750,0.312107,82593.0,82588.0,0.004]
[1742167155980,0.205836,82590.0,82588.0,0.004]
[1742167156153,0.205836,82590.0,82581.0,0.205858]
[1742167156154,0.20584,82588.0,82581.0,0.205858]
[1742167156349,0.012108,82587.0,82581.0,0.205858]
[1742167156610,0.205845,82587.0,82581.0,0.205858]
[1742167157114,0.012108,82588.0,82583.0,0.012109]
[1742167157347,0.012108,82588.0,82584.0,0.0423823]
[1742167157553,0.012108,82590.0,82585.0,0.193739]
[1742167157668,0.205837,82590.0,82585.0,0.193739]
[1742167158297,0.493721,82593.0,82586.0,0.193735]
[1742167158510,0.012108,82590.0,82585.0,0.012108]
[1742167158719,0.012108,82590.0,82586.0,0.04812983]
[1742167159126,0.193735,82587.0,82586.0,0.04812983]
[1742167159559,0.193735,82587.0,82584.0,0.003]
[1742167159761,0.193735,82587.0,82585.0,0.003]
[1742167159762,0.205847,82586.0,82585.0,0.003]
[1742167160228,0.20584,82589.0,82585.0,0.003]
[1742167160376,0.20584,82588.0,82585.0,0.003]
[1742167160582,0.20584,82588.0,82586.0,0.0208858]
[1742167160781,0.3,82594.0,82589.0,0.012108]
[1742167160998,0.3,82594.0,82593.0,0.012107]
[1742167161193,0.036415,82621.0,82594.0,0.193718]
[1742167161527,0.012103,82622.0,82593.0,0.2177]
[1742167161528,0.012105,82610.0,82604.0,0.193694]
[1742167161783,0.3000755,82608.0,82605.0,0.0217906]
[1742167162176,7.55e-05,82608.0,82607.0,0.012105]
[1742167162502,7.55e-05,82608.0,82607.0,0.151265]
[1742167163891,7.55e-05,82608.0,82607.0,0.152265]
[1742167164655,7.55e-05,82608.0,82607.0,0.001]
[1742167164877,0.0121805,82608.0,82607.0,0.04564966]
[1742167165157,0.31369373,82608.0,82607.0,0.001]
[1742167165366,0.31369373,82608.0,82607.0,0.002]
[1742167165367,0.3121805,82608.0,82607.0,0.002]
[1742167166188,0.3121805,82608.0,82607.0,0.001]
[1742167166971,0.3121805,82608.0,82597.0,0.012106]
[1742167166972,0.012105,82605.0,82597.0,0.012106]
[1742167167167,0.012105,82605.0,82598.0,0.0369117]
[1742167167369,0.3,82606.0,82598.0,0.0369117]
[1742167167370,7.55e-05,82608.0,82604.0,0.193692]
[1742167167597,7.55e-05,82608.0,82605.0,0.012105]
[1742167167827,7.55e-05,82608.0,82605.0,0.193691]
[1742167167975,7.55e-05,82608.0,82607.0,0.012105]
[1742167168185,7.55e-05,82608.0,82607.0,0.0762659]
[1742167168386,7.55e-05,82608.0,82607.0,0.0641609]
[1742167168635,7.55e-05,82608.0,82607.0,0.0762659]
[1742167169355,7.55e-05,82608.0,82607.0,0.0641609]
[1742167169527,7.55e-05,82608.0,82607.0,0.0651609]
[1742167169738,7.55e-05,82608.0,82607.0,0.0772659]
[1742167170346,7.55e-05,82608.0,82607.0,0.0651609]
[1742167170901,7.55e-05,82608.0,82607.0,0.0661609]
[1742167171333,7.55e-05,82608.0,82607.0,0.2719539]
[1742167172296,7.55e-05,82608.0,82607.0,0.4109939]
[1742167172471,7.55e-05,82608.0,82607.0,0.42321934]
[1742167173886,7.55e-05,82608.0,82607.0,0.42221934]
[1742167174047,7.55e-05,82608.0,82607.0,0.42621934]
[1742167174452,7.55e-05,82608.0,82607.0,0.42521934]
[1742167174857,7.55e-05,82608.0,82607.0,0.4169939]
[1742167175914,7.55e-05,82608.0,82607.0,1.9169939]
[1742167177983,7.55e-05,82608.0,82607.0,1.9172339]
[1742167178570,7.55e-05,82608.0,82607.0,0.4172339]
[1742167181230,5e-07,82608.0,82607.0,0.5409339]
[1742167182328,0.012101,82635.0,82607.0,0.5409339]
[1742167182329,0.0001691,82647.0,82646.0,0.012099]
[1742167182526,0.0001691,82647.0,82637.0,0.012101]
[1742167182527,0.0122681,82647.0,82639.0,0.13928]
[1742167182725,0.0121,82644.0,82639.0,0.13928]
[1742167183070,0.0121,82644.0,82628.0,0.012102]
[1742167183071,0.012101,82637.0,82628.0,0.205738]
[1742167183272,0.205707,82642.0,82636.0,0.193618]
[1742167183476,0.205707,82642.0,82634.0,0.13932]
[1742167183477,0.19361,82640.0,82634.0,0.13932]
[1742167183679,0.20571,82640.0,82639.0,0.001]
[1742167183881,0.00896756,82641.0,82639.0,0.001]
[1742167184082,0.20257756,82641.0,82639.0,0.001]
[1742167184284,0.20571,82641.0,82640.0,0.0218825]
[1742167184679,0.205715,82639.0,82633.0,0.012101]
[1742167184892,0.0121,82641.0,82636.0,0.205719]
[1742167185256,0.0121,82642.0,82637.0,0.205716]
[1742167185472,0.205707,82642.0,82637.0,0.205716]
[1742167186053,0.3,82643.0,82637.0,0.205716]
[1742167186282,0.3,82643.0,82642.0,0.0121]
[1742167186605,0.3,82649.0,82645.0,0.205696]
[1742167186734,0.3,82649.0,82646.0,0.012099]
[1742167187797,0.3,82650.0,82646.0,0.012099]
[1742167188360,0.3,82650.0,82645.0,0.012099]
[1742167188565,0.31268016,82647.0,82646.0,0.001]
[1742167188762,0.31268016,82647.0,82646.0,0.015044]
[1742167188982,0.31268016,82647.0,82646.0,0.018044]
[1742167189579,0.31268016,82647.0,82646.0,0.015044]
[1742167189826,0.31268016,82647.0,82646.0,0.014044]
[1742167190205,0.31268016,82647.0,82646.0,0.017044]
[1742167190443,0.31268016,82647.0,82640.0,0.0121]
[1742167190444,0.205699,82645.0,82640.0,0.0121]
[1742167190643,0.205708,82642.0,82638.0,0.0449745]
[1742167191206,0.205713,82639.0,82638.0,0.0449745]
[1742167191628,0.193623,82635.0,82630.0,0.205734]
[1742167192306,0.012103,82620.0,82611.0,0.205781]
[1742167192527,0.205762,82620.0,82612.0,0.012104]
[1742167192702,0.205771,82616.0,82609.0,0.205786]
[1742167192902,0.012103,82618.0,82612.0,0.01201965]
[1742167192903,0.205768,82617.0,82612.0,0.01201965]
[1742167193046,0.205768,82617.0,82611.0,0.205782]
[1742167193246,0.012103,82618.0,82613.0,0.205776]
[1742167193470,0.205767,82618.0,82611.0,0.02428706]
[1742167194332,0.193667,82616.0,82610.0,0.2481859]
[1742167194503,0.193667,82616.0,82611.0,0.04694239]
[1742167194729,0.193667,82616.0,82613.0,0.003]
[1742167194910,0.193667,82616.0,82611.0,0.04694239]
[1742167195203,0.193667,82616.0,82611.0,0.04994239]
[1742167195418,0.205775,82615.0,82611.0,0.04994239]
[1742167195609,0.012104,82612.0,82611.0,0.003]
[1742167195850,0.31361713,82612.0,82611.0,0.003]
[1742167196006,0.31361713,82612.0,82596.0,0.012107]
[1742167196007,0.312105,82610.0,82609.0,0.01225206]
[1742167196204,0.012105,82608.0,82600.0,0.1394]
[1742167196817,0.012105,82608.0,82596.0,0.20582]
[1742167197037,0.012105,82608.0,82596.0,0.151467]
[1742167197237,0.012105,82608.0,82597.0,0.19371]
[1742167197462,0.012105,82608.0,82607.0,0.003338]
[1742167198293,0.01361834,82608.0,82607.0,0.003338]
[1742167198514,0.31361834,82608.0,82607.0,0.003338]
[1742167198767,0.312105,82608.0,82607.0,0.003338]
[1742167199423,0.312105,82608.0,82607.0,0.006338]
[1742167199863,0.312105,82608.0,82607.0,0.003338]
[1742167200117,0.312105,82608.0,82607.0,0.000338]
[1742167200330,0.33108164,82608.0,82607.0,0.000338]
[1742167200458,0.34562249,82608.0,82607.0,0.000338]
[1742167201315,0.32664585,82608.0,82607.0,0.000338]
[1742167203003,0.74224585,82608.0,82607.0,0.000338]
[1742167203412,0.74424585,82608.0,82607.0,0.000338]
[1742167204328,0.76322363,82608.0,82607.0,0.000338]
[1742167205567,0.76322363,82608.0,82586.0,0.000338]
[1742167205568,0.52038385,82587.0,82586.0,0.000338]
[1742167205770,0.93598285,82587.0,82586.0,0.00041287]
[1742167206379,0.95496598,82587.0,82586.0,0.00041287]
[1742167206616,0.95996598,82587.0,82586.0,8.7e-07]
[1742167206817,1.00996598,82587.0,82586.0,8.7e-07]
[1742167207021,1.08836598,82587.0,82586.0,8.7e-07]
[1742167207194,1.07759035,82587.0,82586.0,8.7e-07]
[1742167207599,0.2059,82564.0,82541.0,0.21982]
[1742167207779,0.9375542,82564.0,82541.0,0.21982]
[1742167207985,0.93603985,82564.0,82541.0,0.231935]
[1742167208378,0.93603985,82564.0,82535.0,0.0003382]
[1742167208379,0.98313985,82564.0,82535.0,0.0003382]
[1742167208791,0.98313985,82564.0,82536.0,0.193854]
[1742167209191,1.00770535,82564.0,82542.0,0.205953]
[1742167209593,1.05638478,82564.0,82539.0,0.205961]
[1742167209813,1.05638478,82564.0,82563.0,0.0023382]
[1742167210189,1.05638478,82564.0,82563.0,0.0003382]
[1742167211063,1.05838478,82564.0,82563.0,0.0003382]
[1742167211676,1.01128478,82564.0,82563.0,0.0003382]
[1742167214814,1.03027299,82564.0,82563.0,0.0003382]
[1742167215619,1.02927299,82564.0,82563.0,0.0003382]
[1742167215772,1.02827299,82564.0,82563.0,0.0003382]
[1742167216116,1.03627299,82564.0,82563.0,0.0003382]
[1742167217308,1.03927299,82564.0,82563.0,0.0003382]
[1742167217496,0.205969,82536.0,82535.0,0.0003382]
[1742167217701,0.921568,82536.0,82535.0,0.00075038]
[1742167219560,0.921568,82536.0,82535.0,0.00375038]
[1742167220732,0.921568,82536.0,82535.0,0.00675038]
[1742167220931,0.94056108,82536.0,82535.0,0.00675038]
[1742167221708,0.95510193,82536.0,82535.0,3.8e-07]
[1742167222103,0.505987,82529.0,82524.0,0.000338]
[1742167222381,0.505987,82529.0,82528.0,0.00046183]
[1742167224249,0.52052785,82529.0,82528.0,0.00046183]
[1742167224604,0.52252785,82529.0,82528.0,0.00046183]
[1742167224798,0.52452785,82529.0,82528.0,0.00046183]
[1742167226444,0.94012685,82529.0,82528.0,0.00046183]
[1742167227797,0.98942685,82529.0,82528.0,0.00046183]
[1742167228383,1.05837486,82529.0,82528.0,0.00046183]
[1742167228588,0.505997,82525.0,82524.0,8.3e-07]
[1742167228764,0.57553785,82525.0,82524.0,8.3e-07]
[1742167229671,0.52553785,82525.0,82524.0,8.3e-07]
[1742167229877,0.57653785,82525.0,82524.0,8.3e-07]
[1742167230041,0.58139885,82525.0,82524.0,8.3e-07]
[1742167230365,0.52056585,82514.0,82511.0,0.0008]
[1742167230604,1.07512485,82514.0,82511.0,0.0008]
[1742167232127,0.94062226,82514.0,82511.0,0.0008]
[1742167232330,0.01899826,82514.0,82513.0,0.0612194]
[1742167232536,0.3,82518.0,82513.0,0.0491004]
[1742167232741,0.3,82514.0,82513.0,0.0491004]
[1742167232946,0.312119,82514.0,82513.0,0.0491004]
[1742167234094,0.312119,82514.0,82513.0,4e-07]
[1742167234095,0.33111563,82514.0,82513.0,4e-07]
[1742167235268,0.31899663,82514.0,82513.0,4e-07]
[1742167235418,0.01899663,82514.0,82513.0,4e-07]
[1742167236052,0.01899663,82514.0,82513.0,0.04128774]
[1742167236275,0.01899663,82514.0,82513.0,0.11998774]
[1742167236450,0.03111563,82514.0,82513.0,0.11998774]
[1742167236651,0.33111563,82514.0,82513.0,0.11998774]
[1742167236834,0.33111563,82514.0,82513.0,0.0787004]
[1742167237541,0.312119,82514.0,82513.0,0.0787004]
[1742167238337,0.312119,82514.0,82513.0,4e-07]
[1742167238761,0.312119,82514.0,82513.0,0.0010004]
[1742167240875,0.33111602,82514.0,82513.0,0.0010004]
[1742167241075,0.74671502,82514.0,82513.0,0.0010004]
[1742167241903,0.727718,82514.0,82513.0,0.0010004]
[1742167242325,0.727718,82514.0,82513.0,4e-07]
[1742167242649,0.75229146,82514.0,82513.0,0.0010004]
[1742167242851,0.727718,82514.0,82513.0,0.0010004]
[1742167243067,0.727718,82514.0,82513.0,4e-07]
[1742167244387,0.74225885,82514.0,82513.0,4e-07]
[1742167244590,0.74225885,82514.0,82503.0,0.000338]
[1742167244591,0.506049,82504.0,82503.0,0.000338]
[1742167244815,0.506049,82504.0,82503.0,0.00046168]
[1742167245029,0.52058985,82504.0,82503.0,0.00046168]
[1742167245214,0.93618885,82504.0,82503.0,0.00046168]
[1742167245630,0.96030415,82504.0,82503.0,0.00046168]
[1742167246233,0.97930372,82504.0,82503.0,0.00046168]
[1742167246459,0.94064757,82504.0,82503.0,0.00046168]
[1742167246637,0.94164757,82504.0,82503.0,0.08066168]
[1742167246861,0.94164757,82504.0,82503.0,0.08872785]
[1742167247065,0.94164757,82504.0,82503.0,0.00046168]
[1742167247421,0.94064757,82504.0,82503.0,0.00046168]
[1742167247785,0.94164757,82504.0,82503.0,0.00046168]
[1742167248504,0.95618842,82504.0,82503.0,0.00046168]
[1742167250236,0.95718842,82504.0,82503.0,0.00046168]
[1742167253214,1.09586842,82504.0,82503.0,0.00046168]
[1742167260356,0.95718842,82504.0,82503.0,0.00046168]
[1742167260590,0.94264757,82504.0,82503.0,0.08066168]
[1742167260768,0.74871857,82504.0,82503.0,0.08872785]
[1742167261010,0.729719,82504.0,82503.0,0.08872785]
[1742167261616,0.31312,82504.0,82503.0,0.08872785]
[1742167262565,0.31212,82504.0,82503.0,0.08872785]
[1742167262765,0.31312,82504.0,82503.0,0.08872785]
[1742167263197,0.001,82504.0,82503.0,0.10084785]
[1742167263364,0.0001693,82511.0,82510.0,0.206034]
[1742167263573,0.0001693,82511.0,82510.0,0.1658074]
[1742167263928,0.0001693,82511.0,82510.0,0.474554]
[1742167264094,0.0001693,82511.0,82510.0,1.974554]
[1742167264509,0.0001693,82524.0,82523.0,0.206002]
[1742167264772,0.0001693,82524.0,82523.0,0.335802]
[1742167265288,0.0001693,82524.0,82523.0,0.334802]
[1742167265487,0.0001693,82524.0,82523.0,0.4288734]
[1742167265954,0.0001693,82524.0,82523.0,0.4298734]
[1742167266262,0.0001693,82524.0,82523.0,0.4278734]
[1742167266483,0.10778863,82547.0,82546.0,0.323631]
[1742167266685,0.10778863,82547.0,82546.0,0.3971848]
[1742167266907,0.10778863,82547.0,82546.0,0.4092988]
[1742167267109,0.10778863,82547.0,82546.0,0.4082988]
[1742167267468,0.10778863,82547.0,82546.0,0.2033538]
[1742167267672,0.1082003,82547.0,82546.0,0.2033538]
[1742167268090,0.1203143,82547.0,82546.0,0.2043538]
[1742167268334,0.1203143,82547.0,82546.0,0.1308]
[1742167268482,0.1203143,82547.0,82546.0,0.001]
[1742167269269,0.1203143,82547.0,82546.0,0.003]
[1742167269458,0.1203143,82547.0,82546.0,0.002]
[1742167269665,0.012114,82544.0,82538.0,0.0804]
[1742167269859,0.205959,82541.0,82539.0,0.0692728]
[1742167270063,0.012115,82541.0,82539.0,0.0692728]
[1742167270303,0.012115,82540.0,82539.0,0.0692728]
[1742167270474,0.012115,82540.0,82538.0,0.0804]
[1742167270881,0.01269497,82547.0,82546.0,0.001]
[1742167271187,0.00058097,82547.0,82542.0,0.012115]
[1742167271352,0.00058097,82547.0,82543.0,0.0118745]
[1742167271517,0.01269497,82547.0,82543.0,0.0118745]
[1742167271721,0.012114,82545.0,82543.0,0.0118745]
[1742167272704,0.193831,82546.0,82543.0,0.0128745]
[1742167273979,0.205949,82545.0,82543.0,0.0128745]
[1742167274178,0.205949,82545.0,82544.0,0.02992385]
[1742167274396,0.193831,82546.0,82544.0,0.02992385]
[1742167274582,0.00058097,82547.0,82544.0,0.02992385]
[1742167274784,0.00058097,82547.0,82546.0,0.193831]
[1742167274979,0.00058097,82547.0,82546.0,0.23455374]
[1742167275224,0.00058097,82547.0,82546.0,0.36435374]
[1742167275429,0.00058097,82547.0,82546.0,0.50299374]
[1742167276208,0.00058097,82547.0,82546.0,0.50399374]
[1742167276410,0.00058097,82547.0,82546.0,0.50299374]
[1742167277343,0.00058097,82547.0,82546.0,0.50499374]
[1742167277555,0.00058097,82547.0,82546.0,0.16040874]
[1742167277755,0.00058097,82547.0,82546.0,0.1318]
[1742167277958,0.00058097,82547.0,82546.0,0.1348]
[1742167280997,0.00058097,82547.0,82546.0,0.146914]
[1742167281172,0.00058097,82547.0,82546.0,0.14812527]
[1742167281408,0.00058097,82547.0,82546.0,0.24465438]
[1742167281611,0.00058097,82547.0,82546.0,0.24344311]
[1742167282363,0.00058097,82547.0,82546.0,0.24144311]
[1742167282483,0.00058097,82547.0,82546.0,1.74144311]
[1742167282682,0.00158097,82547.0,82546.0,1.74244311]
[1742167283142,0.00158097,82547.0,82546.0,1.88112311]
[1742167284152,0.00258097,82547.0,82546.0,1.88512311]
[1742167284351,0.00158097,82547.0,82546.0,1.88112311]
[1742167284707,0.00258097,82547.0,82546.0,1.88612311]
[1742167285392,0.00258097,82547.0,82546.0,0.37158226]
[1742167286768,0.00258097,82547.0,82546.0,0.1388]
[1742167287405,0.20852297,82547.0,82546.0,0.009]
[1742167289015,0.00258097,82547.0,82546.0,0.009]
[1742167289740,0.01469497,82547.0,82546.0,0.009]
[1742167289944,0.01469497,82547.0,82546.0,0.02037895]
[1742167290714,0.01469497,82547.0,82546.0,0.009]
[1742167291112,0.00258097,82547.0,82546.0,0.009]
[1742167291882,0.00258097,82547.0,82546.0,0.214945]
[1742167292089,0.00058097,82547.0,82546.0,0.205945]
[1742167292295,0.00058097,82547.0,82546.0,0.3366836]
[1742167292494,9.7e-07,82547.0,82546.0,0.44181367]
[1742167292922,9.7e-07,82547.0,82546.0,1.94181367]
[1742167293126,0.415599,82579.0,82563.0,0.205902]
[1742167293324,0.0002926,82564.0,82563.0,0.33551301]
[1742167293532,0.0002926,82564.0,82563.0,0.442267]
[1742167293946,0.0002926,82564.0,82563.0,0.236365]
[1742167294157,0.0124036,82564.0,82563.0,0.107965]
[1742167294364,0.0124036,82564.0,82556.0,0.0797]
[1742167294566,0.0124036,82564.0,82556.0,0.091812]
[1742167294772,0.012112,82560.0,82556.0,0.0797]
[1742167294974,0.205915,82558.0,82557.0,0.0448407]
[1742167295386,0.205912,82560.0,82557.0,0.0448407]
[1742167296368,0.205906,82562.0,82557.0,0.0569527]
[1742167296502,0.205906,82562.0,82558.0,0.05174697]
[1742167297356,0.20591,82561.0,82558.0,0.05174697]
[1742167297667,0.012112,82559.0,82558.0,0.05174697]
[1742167298044,0.012112,82559.0,82558.0,0.005]
[1742167298457,0.01362606,82559.0,82558.0,0.005]
[1742167298663,0.012112,82559.0,82558.0,0.005]
[1742167299428,0.012112,82559.0,82558.0,0.01]
[1742167299960,0.205929,82553.0,82548.0,0.012114]
[1742167300163,0.205929,82553.0,82549.0,0.03689476]
[1742167301417,0.205929,82553.0,82549.0,0.03989476]
[1742167301977,0.012113,82550.0,82549.0,0.03989476]
[1742167302182,0.012113,82550.0,82549.0,0.003]
[1742167303234,0.012113,82550.0,82549.0,0.004]
[1742167303436,0.02443955,82550.0,82549.0,0.004]
[1742167303649,0.02443955,82550.0,82549.0,0.008]
[1742167303824,0.02443955,82550.0,82549.0,0.02267786]
[1742167304158,0.012113,82550.0,82549.0,0.02267786]
[1742167305424,0.0239428,82550.0,82549.0,0.02267786]
[1742167306029,0.012113,82550.0,82549.0,0.02267786]
[1742167306475,0.012113,82550.0,82549.0,0.01867786]
[1742167306680,0.012113,82550.0,82549.0,0.02267786]
[1742167306881,0.012113,82550.0,82549.0,0.008]
[1742167307768,0.02441178,82550.0,82549.0,0.008]
[1742167307970,0.32441178,82550.0,82549.0,0.008]
[1742167308177,0.32441178,82550.0,82549.0,0.012]
[1742167308399,0.74001078,82550.0,82549.0,0.012]
[1742167308595,0.76416707,82550.0,82549.0,0.012]
[1742167309142,0.76416707,82550.0,82549.0,0.008]
[1742167309272,0.76416707,82550.0,82549.0,0.01]
[1742167309519,0.76416707,82550.0,82549.0,0.002]
[1742167309721,0.76416707,82550.0,82546.0,0.0003386]
[1742167309722,0.012114,82547.0,82546.0,0.0003386]
[1742167309944,0.727713,82547.0,82546.0,0.0003386]
[1742167310490,0.74670329,82547.0,82546.0,0.0003386]
[1742167310748,0.94053129,82547.0,82546.0,0.0003386]
[1742167311135,1.02363129,82547.0,82546.0,0.0003386]
[1742167311488,1.004641,82547.0,82546.0,0.0033386]
[1742167312012,1.004641,82547.0,82546.0,0.0063386]
[1742167312462,1.004641,82547.0,82546.0,0.0033386]
[1742167312874,1.004641,82547.0,82546.0,0.0003386]
[1742167313637,1.006641,82547.0,82546.0,0.0003386]
[1742167314042,1.005641,82547.0,82546.0,0.0003386]
[1742167314339,1.006641,82547.0,82546.0,0.0003386]
[1742167314551,1.0256328,82547.0,82546.0,0.0003386]
[1742167314736,1.0738328,82547.0,82546.0,6e-07]
[1742167314943,1.0728328,82547.0,82546.0,6e-07]
[1742167315154,1.0738328,82547.0,82546.0,6e-07]
[1742167317343,0.206023,82515.0,82514.0,0.0785]
[1742167318128,0.193888,82522.0,82514.0,0.0785]
[1742167318129,0.012117,82526.0,82519.0,0.012118]
[1742167318348,0.19388,82525.0,82519.0,0.012118]
[1742167318513,0.1323,82547.0,82530.0,0.0785]
[1742167318514,0.3,82533.0,82530.0,0.0785]
[1742167318747,0.002,82547.0,82542.0,0.012115]
[1742167318902,0.002,82547.0,82539.0,0.012115]
[1742167318903,0.205971,82536.0,82531.0,0.0759605]
[1742167319111,0.205958,82541.0,82535.0,0.193857]
[1742167319315,0.193849,82539.0,82534.0,0.012116]
[1742167319530,0.193854,82536.0,82535.0,0.03725555]
[1742167319731,0.193863,82533.0,82531.0,0.0759605]
[1742167320121,0.193863,82533.0,82531.0,0.0296605]
[1742167320302,0.205969,82536.0,82531.0,0.0296605]
[1742167320502,0.205974,82535.0,82531.0,0.0296605]
[1742167320704,0.012116,82535.0,82531.0,0.0296605]
[1742167320978,0.012116,82535.0,82532.0,0.05251345]
[1742167321315,0.012114,82543.0,82534.0,0.012116]
[1742167321524,0.205959,82541.0,82536.0,0.012115]
[1742167321725,0.012115,82538.0,82536.0,0.03413715]
[1742167321928,0.205973,82535.0,82534.0,0.003]
[1742167322133,0.205973,82535.0,82531.0,0.0296605]
[1742167322134,0.193863,82533.0,82531.0,0.0296605]
[1742167322340,0.205979,82533.0,82531.0,0.0296605]
[1742167322547,0.012116,82532.0,82531.0,0.0296605]
[1742167322758,0.012116,82532.0,82522.0,0.240185]
[1742167322759,0.012117,82528.0,82524.0,0.0816]
[1742167323069,0.205994,82527.0,82524.0,0.22]
[1742167323280,0.205992,82528.0,82524.0,0.22]
[1742167323501,0.205982,82531.0,82525.0,0.08726067]
[1742167323726,0.19385,82538.0,82531.0,0.004]
[1742167323925,0.012115,82537.0,82532.0,0.012116]
[1742167324167,0.19385,82538.0,82532.0,0.012116]
[1742167324383,0.012115,82539.0,82534.0,0.205975]
[1742167324578,0.19385,82538.0,82535.0,0.0441194]
[1742167324824,0.205969,82536.0,82535.0,0.0441194]
[1742167325023,0.19386,82534.0,82531.0,0.002]
[1742167325237,0.19386,82534.0,82532.0,0.002]
[1742167325757,0.19386,82534.0,82531.0,0.002]
[1742167326180,0.19386,82534.0,82529.0,0.193869]
[1742167326181,0.19386,82534.0,82529.0,0.205985]
[1742167326591,0.19386,82534.0,82532.0,0.002]
[1742167326709,0.19386,82534.0,82533.0,0.0426092]
[1742167327112,0.193866,82531.0,82527.0,0.20599]
[1742167327474,0.19386,82534.0,82529.0,0.193869]
[1742167327648,0.19386,82534.0,82532.0,0.003]
[1742167327812,0.205976,82534.0,82532.0,0.003]
[1742167328213,0.012116,82530.0,82524.0,0.22]
[1742167328423,0.012117,82527.0,82525.0,0.06666097]
[1742167329223,0.205993,82527.0,82525.0,0.06666097]
[1742167329429,0.205997,82525.0,82524.0,0.0856]
[1742167330093,0.01899295,82528.0,82525.0,0.0043386]
[1742167330432,0.01899295,82528.0,82525.0,0.0003386]
[1742167330576,0.01899295,82528.0,82527.0,0.012117]
[1742167330827,0.01899295,82528.0,82527.0,0.06381576]
[1742167331825,0.01899295,82528.0,82527.0,0.06881576]